[Event "Croatian 1A League 2022"]
[Site "Porec"]
[Date "2022.09.24"]
[Round "1.29"]
[White "Zelcic, Robert"]
[Black "Ivekovic, Zvonimir"]
[Result "1-0"]
[ECO "B53"]
[WhiteElo "2495"]
[BlackElo "2380"]
[Annotator "TA"]
[PlyCount "105"]
[EventDate "2022.09.24"]
[EventType "team-tourn"]
[EventCountry "CRO"]
[SourceTitle "playchess.com"]
[Source "ChessBase"]
[SourceQuality "1"]
[TimeControl "40/5400+30:1800+30"]

{[%evp 22,105,-1,-30,34,-54,-55,-42,0,0,0,0,-6,-19,0,-43,-10,-41,6,-62,-41,-33,-37,-41,-37,-34,-22,-38,0,-12,-18,-25,-10,-24,-25,-24,-9,-23,10,-15,-12,-51,0,0,0,0,4,11,17,4,39,39,86,86,121,121,113,121,189,173,173,165,206,200,208,212,190,159,2341,2845,2510,2400,2183,1975,5620,6115,29976,29977,29977,29978,29978,29979,29978,29979,29975,0]} 1. e4 {[%emt 0:01:00]} c5 {[%emt 0:00:00]} 2. Nf3 {[%emt 0:00:00]} d6 {[%emt 0:00:30]} 3. d4 {[%emt 0:00:00]} cxd4 {[%emt 0:00:30]} 4. Qxd4 {[%emt 0:00:00]} Nc6 {[%emt 0:00:30]} 5. Bb5 {[%emt 0:00:00]} Bd7 {[%emt 0:00:30]} 6. Bxc6 {[%emt 0:00:30]} Bxc6 {[%emt 0:00:00]} 7. Nc3 {[%emt 0:00:00]} Nf6 {[%emt 0:00:00]} 8. Bg5 {[%emt 0:00:00]} e6 {[%emt 0:00:30]} 9. O-O-O {[%emt 0:00:00]} Be7 {[%emt 0:00:00]} 10. Rhe1 {[%emt 0:00:00]} O-O {[%emt 0:00:00]} 11. Kb1 {[%emt 0:00:00]} Qc7 {[%emt 0:06:30]} 12. Qd2 {[%emt 0:00:00]} b5 {[%emt 0:01:30] B53: Sicilian: 2...d6: Lines with Qxd4.} ({Black should play} 12... Rfd8 $11) 13. Bxf6 {[%emt 0:01:30]} (13. Nd4 $1 $14) 13... Bxf6 $15 {[%emt 0:02:30]} 14. Qxd6 {[%emt 0:00:00]} Qb6 {[%emt 0:01:30] Black is slightly better.} 15. Ne5 {[%emt 0:08:00]} Bxe5 {[%emt 0:11:30]} 16. Qxe5 {[%emt 0:00:30]} Qxf2 {[%emt 0:03:30]} (16... b4 $5 17. Ne2 $8 Qxf2 $11) 17. Ne2 {[%emt 0:31:30] [#]} Rac8 $146 {[%emt 0:22:30]} ({Predecessor:} 17... Rfd8 18. Nd4 Be8 19. Rf1 Qh4 20. Rd3 f6 21. Nxe6 Bf7 22. Qf4 Qxf4 23. Nxf4 Bc4 24. Rxd8+ Rxd8 {1-0 (35) Ambroz,J-Nun,J (2365) Trnava 1980}) 18. Nf4 {[%emt 0:06:30]} Ba8 {[%emt 0:21:30]} 19. Re2 {[%emt 0:32:57] [#]} (19. Nh5 $5 {[%cal Re5g7]} Qxc2+ 20. Ka1 $11) 19... Rfd8 {[%emt 0:00:30]} 20. Rde1 {[%emt 0:01:12]} (20. Rxf2 $2 Rxd1#) (20. Rxd8+ $1 $11 Rxd8 21. a4) 20... Qc5 {[%emt 0:00:30]} (20... Qb6 {feels hotter.} 21. Nh5 Qd4 22. Qxd4 Rxd4 23. c3 Rdc4) 21. Qxc5 {[%emt 0:00:08]} Rxc5 {[%emt 0:00:30]} 22. b3 {[%emt 0:00:27]} Rc7 {[%emt 0:03:30]} 23. e5 {[%emt 0:00:35]} b4 {[%emt 0:00:30]} 24. Kc1 {[%emt 0:02:03]} Kf8 {[%emt 0:03:48]} 25. g3 {[%emt 0:00:44]} g5 {[%emt 0:00:40]} 26. Nh3 {[%emt 0:00:09]} h6 {[%emt 0:00:51]} 27. Rd2 {[%emt 0:00:51]} Rdc8 {[%emt 0:02:33]} 28. Nf2 {[%emt 0:00:11]} Rc5 {[%emt 0:02:14]} 29. Ng4 {[%emt 0:01:38]} Ke7 {[%emt 0:02:51]} 30. Nxh6 {[%emt 0:03:37]} Bf3 $1 {[%emt 0:00:28] aiming for ...Rh8.} 31. h3 {[%emt 0:03:45]} ({But not} 31. Rf1 Bh5 32. Rdf2 (32. g4 $2 Bg6 $19) 32... Bg6 $17) 31... Rh8 {[%emt 0:01:26]} (31... Rc3 $1 $15) 32. Nxf7 $11 {[%emt 0:00:37]} Kxf7 {[%emt 0:00:55]} 33. Rf2 $1 {[%emt 0:00:24]} Rxh3 {[%emt 0:00:46]} 34. Rxf3+ {[%emt 0:00:00][%mdl 4096] Endgame KRR-KRR} Ke7 {[%emt 0:00:18]} 35. Re2 {[%emt 0:02:19] Inhibits Rh2.} Rh1+ {[%emt 0:03:28]} 36. Kb2 {[%emt 0:00:09]} Rd5 {[%emt 0:01:48]} (36... Rg1 $14 {might be stronger.}) 37. a3 $16 {[%emt 0:00:32]} a5 {[%emt 0:00:32]} 38. axb4 {[%emt 0:00:18]} axb4 {[%emt 0:00:04]} 39. Re4 {[%emt 0:00:16]} Rh2 {[%emt 0:02:35]} (39... Rb5 $16 {is a better defense.} 40. Rc4 Rd1) 40. Rxb4 $18 {[%emt 0:00:00]} Rxe5 {[%emt 0:00:00]} 41. Rc4 {[%emt 0:05:38] Inhibits Rc5.} Rd2 {[%emt 0:05:43]} 42. b4 {[%emt 0:01:30][%cal Bb3b4,Bb4b5,Bb5b6][%mdl 32]} Rdd5 {[%emt 0:00:30]} 43. Rc7+ {[%emt 0:00:30]} Kd6 {[%emt 0:00:30]} 44. Rff7 {[%emt 0:02:30][%csl Gc7][%cal Rf7d7]} Re3 $2 {[%emt 0:00:30] [#] This costs Black the game.} (44... Re4 $16) 45. Rfd7+ $1 {[%emt 0:00:30]} Ke5 {[%emt 0:00:00]} 46. Rxd5+ {[%emt 0:00:00]} Kxd5 {[%emt 0:00:00] KR-KR} 47. b5 {[%emt 0:04:00]} Rxg3 {[%emt 0:00:00]} 48. b6 {[%emt 0:00:00] b7 would kill now.} Kd6 {[%emt 0:00:00]} 49. Rc8 {[%emt 0:00:00] White mates.} Rg4 {[%emt 0:00:30]} 50. Kc3 {[%emt 0:00:30]} Rg3+ {[%emt 0:00:30]} 51. Kd2 {[%emt 0:00:30]} Rg2+ {[%emt 0:00:30]} 52. Ke3 {[%emt 0:00:00]} Rg3+ {[%emt 0:00:30]} 53. Ke4 $2 {[%emt 0:00:00][%mdl 32768] Weighted Error Value: White=0.14 (very precise) /Black=0.42. Sensor Board Error (Ke4/e5)?} (53. Kf2 {mates} Rg4 54. b7 Rb4 55. b8=Q+ Rxb8 56. Rxb8 g4 57. Ke3 Kd5 58. Rg8) 1-0

[Event "Croatian 1A League 2022"]
[Site "Porec"]
[Date "2022.09.24"]
[Round "1.30"]
[White "Zovko, Mario"]
[Black "Rogulj, Branko"]
[Result "1/2-1/2"]
[ECO "C67"]
[WhiteElo "2306"]
[BlackElo "2354"]
[Annotator "TA"]
[PlyCount "40"]
[EventDate "2022.09.24"]
[EventType "team-tourn"]
[EventCountry "CRO"]
[SourceTitle "playchess.com"]
[Source "ChessBase"]
[SourceQuality "1"]
[TimeControl "40/5400+30:1800+30"]

{[%evp 16,27,29,6,16,14,13,4,2,0,0,0,0,-9]} 1. e4 {[%emt 0:01:00]} e5 {[%emt 0:01:00]} 2. Nf3 {[%emt 0:00:30]} Nc6 {[%emt 0:00:30]} 3. Bb5 {[%emt 0:00:30]} Nf6 {[%emt 0:00:30][%cal Bg8f6,Bf6e4,Be4d6,Bd6f5][%mdl 32]} 4. O-O {[%emt 0:00:30]} Nxe4 {[%emt 0:00:30]} 5. d4 {[%emt 0:00:30]} Nd6 {[%emt 0:00:30]} 6. Bxc6 {[%emt 0:00:30]} dxc6 {[%emt 0:00:30]} 7. dxe5 {[%emt 0:00:30]} Nf5 {[%emt 0:00:30]} 8. Qxd8+ {[%emt 0:00:30]} Kxd8 {[%emt 0:00:30]} 9. h3 {[%emt 0:01:30]} Be7 {[%emt 0:05:30] The position is equal. C67: Ruy Lopez: Berlin Defence: 4 0-0 Nxe4.} 10. Rd1+ {[%emt 0:02:30]} Ke8 {[%emt 0:00:30]} 11. g4 {[%emt 0:01:30]} Nh4 {[%emt 0:00:30]} 12. Nxh4 {[%emt 0:01:30]} Bxh4 {[%emt 0:00:00]} 13. Kg2 {[%emt 0:01:30]} Be6 {[%emt 0:09:00]} 14. Nc3 {[%emt 0:02:30] [#] Not much happened in this game.  Weighted Error Value: White=0.06 (flawless) /Black=0.00 (flawless)} {Predecessor:} h5 $146 15. f3 Be7 16. Be3 f5 17. exf6 gxf6 18. Ne2 hxg4 19. hxg4 Bd6 20. Bf4 Bc4 {½-½ (64) Swiercz,D (2656)-Tari,A (2660) Chess.com INT 2022} 1/2-1/2

[Event "Croatian 1A League 2022"]
[Site "Porec"]
[Date "2022.09.25"]
[Round "2.1"]
[White "Saric, Ivan"]
[Black "Kaczur, Florian"]
[Result "1-0"]
[ECO "B45"]
[WhiteElo "2668"]
[BlackElo "2483"]
[Annotator "TA"]
[PlyCount "119"]
[EventDate "2022.09.24"]
[EventType "team-tourn"]
[EventCountry "CRO"]
[SourceTitle "playchess.com"]
[Source "ChessBase"]
[SourceQuality "1"]
[TimeControl "40/5400+30:1800+30"]

{[%evp 27,119,3,7,13,2,0,34,28,14,-39,28,43,46,20,8,16,11,12,33,0,0,0,81,52,64,62,64,63,64,76,70,80,126,92,81,93,93,93,88,0,104,87,105,98,102,105,105,105,105,105,102,92,81,0,81,0,67,0,0,12,86,96,312,626,619,598,570,553,537,530,526,520,530,477,1000,1000,793,775,718,626,1125,1125,1088,1095,1077,1076,933,901,779,756,29980,29980,29981,29982]} 1. e4 {[%emt 0:01:44]} c5 {[%emt 0:00:23]} 2. Nf3 {[%emt 0:00:03]} e6 {[%emt 0:00:38]} 3. d4 {[%emt 0:00:33]} cxd4 {[%emt 0:00:05]} 4. Nxd4 {[%emt 0:00:04]} Nf6 {[%emt 0:00:55]} 5. Nc3 {[%emt 0:00:11]} Nc6 {[%emt 0:00:46]} 6. Nxc6 {[%emt 0:00:48]} bxc6 {[%emt 0:00:02]} 7. e5 {[%emt 0:00:05]} Nd5 {[%emt 0:00:06]} 8. Ne4 {[%emt 0:00:04]} Qc7 {[%emt 0:00:40]} 9. f4 {[%emt 0:00:13]} Qb6 {[%emt 0:01:37]} 10. c4 {[%emt 0:00:25]} Bb4+ {[%emt 0:00:33]} 11. Ke2 {[%emt 0:00:14]} f5 {[%emt 0:01:36]} 12. Nf2 {[%emt 0:00:18]} Ba6 {[%emt 0:01:26]} 13. Kf3 {[%emt 0:00:10]} Ne7 {[%emt 0:00:15]} 14. Be3 {[%emt 0:00:07]} Bc5 {[%emt 0:00:04]} 15. Bxc5 {[%emt 0:00:05] B45: Sicilian Four Knights.} Qxc5 {[%emt 0:00:04]} 16. Qd6 {[%emt 0:07:45]} Qb6 {[%emt 0:00:58]} 17. Be2 {[%emt 0:00:56] White is slightly better.} Rd8 {[%emt 0:01:54] [#]} 18. Rhd1 $146 {[%emt 0:02:56]} (18. Rac1 $11) ({Predecessor:} 18. b4 Nc8 19. Qc5 d5 20. exd6 Nxd6 21. Qe5 c5 22. Qxc5 Rc8 23. Qxb6 axb6 24. Rhc1 Bxc4 25. Bxc4 Nxc4 {½-½ (46) Firouzja,A (2804)-Rapport,R (2776) Bucharest 2022}) 18... Nc8 {[%emt 0:02:25]} (18... g5 $1 $15 19. fxg5 h6) 19. Qa3 $11 {[%emt 0:01:02]} c5 {[%emt 0:03:14]} 20. Rac1 {[%emt 0:04:15][%cal Ba1c1,Bc1c3,Bc3b3,Bb3d3][%mdl 32] Active counter play!} d6 {[%emt 0:11:52]} 21. Nd3 {[%emt 0:02:34]} Bb7+ {[%emt 0:06:08]} 22. Kf2 {[%emt 0:06:28]} Be4 {[%emt 0:03:44]} 23. Rc3 {[%emt 0:08:17]} O-O {[%emt 0:21:59]} 24. Rb3 $36 {[%emt 0:10:48][%mdl 2048] White fights for an advantage.} Qc6 {[%emt 0:03:14]} (24... Qc7 $1 $11 {remains equal.}) 25. exd6 $16 {[%emt 0:05:44] Black must now prevent Ne5.} Bxd3 {[%emt 0:02:25]} 26. Rbxd3 {[%emt 0:00:07] And now Bf3 would win.} Nxd6 {[%emt 0:02:51]} 27. Qxa7 {[%emt 0:13:31]} Ne4+ {[%emt 0:00:06]} 28. Kg1 {[%emt 0:00:55]} Ra8 {[%emt 0:05:08]} 29. Qe7 {[%emt 0:01:43]} Rfe8 {[%emt 0:04:09]} ({Black should try} 29... Qe8 30. Qxe8 Rfxe8) 30. Rd8 {[%emt 0:00:51]} Raxd8 {[%emt 0:01:34]} 31. Rxd8 {[%emt 0:00:04]} Rxd8 {[%emt 0:00:05]} 32. Qxd8+ {[%emt 0:00:02][%mdl 4096] Endgame KQB-KQN} Kf7 {[%emt 0:00:07]} 33. Bh5+ {[%emt 0:10:39]} g6 {[%emt 0:00:17]} 34. Bf3 {[%emt 0:00:02]} Qb7 {[%emt 0:13:54]} 35. b3 $1 {[%emt 0:14:10]} ({But not} 35. Qh8 $6 Qb4 36. Qxh7+ Kf8 $11) 35... Qb4 {[%emt 0:01:35][%cal Rb4e1]} 36. Kf1 {[%emt 0:00:32] Inhibits Qe1+. aiming for Qc7+.} Qc3 {[%emt 0:03:51]} 37. Bxe4 {[%emt 0:00:16]} Qa1+ {[%emt 0:03:38] [#]} 38. Ke2 $1 {[%emt 0:00:04]} fxe4 {[%emt 0:00:10] KQ-KQ} 39. Qc7+ {[%emt 0:01:21]} Kg8 {[%emt 0:01:29]} 40. Qd8+ {[%emt 0:00:00]} ({Much weaker is} 40. Qxc5 Qxa2+ 41. Ke3 Qxg2 $11) 40... Kf7 {[%emt 0:00:00]} 41. Qc7+ {[%emt 0:23:08]} (41. Qd7+ $16 Kf6 42. Qd8+ Kf7) 41... Ke8 {[%emt 0:05:25]} (41... Kg8 $1 $11) 42. Qxc5 {[%emt 0:03:32]} (42. Qc6+ $14 Kf7 43. Qc7+ (43. Qxe4 Qxa2+ 44. Kf1 Qxb3 $11)) 42... Qxa2+ $11 {[%emt 0:00:05]} 43. Ke3 {[%emt 0:00:10]} Qxb3+ {[%emt 0:03:58]} (43... Qxg2 $11 {keeps the balance.} 44. Qc6+ Ke7) 44. Kxe4 $16 {[%emt 0:00:05] Strongly threatening Qb5+.} Qb7+ {[%emt 0:00:49] This costs Black the game.} (44... Qc2+ $16 {was worth a try.} 45. Kf3 h5) 45. Ke5 $18 {[%emt 0:00:31]} Qg7+ {[%emt 0:01:57]} 46. Kxe6 {[%emt 0:01:08][%cal Rc5c8]} Qf7+ {[%emt 0:00:24]} 47. Ke5 {[%emt 0:00:04] Threatening mate with Qc8+.} Qf5+ {[%emt 0:00:05]} 48. Kd4 {[%emt 0:00:05] White threatens Qxf5 and mate.} Qxf4+ {[%emt 0:00:04]} 49. Kd5 {[%emt 0:00:49]} Qg5+ {[%emt 0:11:58]} 50. Kd6 {[%emt 0:00:24]} Qd8+ {[%emt 0:03:18]} (50... Qe7+ $142 51. Kc6 Qd7+ 52. Kb6 Qd2 53. Qc6+ Kf8) 51. Ke6 {[%emt 0:04:09] White wants to mate with Qc6+.} Qd7+ {[%emt 0:00:05]} 52. Kf6 {[%emt 0:00:07] Qb5 would kill now.} Qf7+ {[%emt 0:00:10]} 53. Kg5 {[%emt 0:00:11]} Qf1 {[%emt 0:00:20]} 54. Qc6+ {[%emt 0:02:50]} Ke7 {[%emt 0:00:28]} 55. Qe4+ {[%emt 0:00:19]} Kd7 {[%emt 0:00:27]} 56. h4 {[%emt 0:00:58]} Qc1+ {[%emt 0:01:24] [#]} 57. Kf6 $1 {[%emt 0:00:39]} Qh6 {[%emt 0:00:21]} 58. Kf7 {[%emt 0:00:56] Intending Qe7+ and mate.} Kd6 {[%emt 0:01:08]} 59. Qd5+ {[%emt 0:00:14]} Kc7 {[%emt 0:00:02]} 60. Qg5 {[%emt 0:00:20] Weighted Error Value: White=0.15 (very precise) /Black=0.39} 1-0

[Event "Croatian 1A League 2022"]
[Site "Porec"]
[Date "2022.09.25"]
[Round "2.2"]
[White "Janzelj, Tim"]
[Black "Banusz, Tamas"]
[Result "1/2-1/2"]
[ECO "D45"]
[WhiteElo "2456"]
[BlackElo "2622"]
[Annotator "TA"]
[PlyCount "44"]
[EventDate "2022.09.24"]
[EventType "team-tourn"]
[EventCountry "CRO"]
[SourceTitle "playchess.com"]
[Source "ChessBase"]
[SourceQuality "1"]
[TimeControl "40/5400+30:1800+30"]

{[%evp 15,44,27,16,14,21,13,14,22,16,14,13,24,27,7,12,7,28,13,13,16,10,10,6,14,6,9,15,6,7,0,0]} 1. d4 {[%emt 0:00:03]} d5 {[%emt 0:00:22]} 2. c4 {[%emt 0:00:09]} e6 {[%emt 0:00:07]} 3. Nc3 {[%emt 0:00:41]} Nf6 {[%emt 0:00:09]} 4. Nf3 {[%emt 0:00:35]} c6 {[%emt 0:00:14]} 5. e3 {[%emt 0:00:24]} a6 {[%emt 0:00:18]} 6. b3 {[%emt 0:00:14]} Bb4 {[%emt 0:00:14]} 7. Bd2 {[%emt 0:00:07]} Nbd7 {[%emt 0:00:34]} 8. Bd3 {[%emt 0:00:15]} O-O {[%emt 0:00:13]} 9. O-O {[%emt 0:00:13][%cal Oc3d5] D45: Semi-Slav: 5 e3.} Bd6 {[%emt 0:00:17]} 10. Qc2 {[%emt 0:13:10]} e5 {[%emt 0:11:18] [#] aiming for ...e4.} 11. cxd5 {[%emt 0:01:16]} cxd5 {[%emt 0:00:06]} 12. e4 {[%emt 0:01:54]} exd4 {[%emt 0:00:56]} 13. Nxd5 {[%emt 0:00:39]} Nxd5 {[%emt 0:00:07]} 14. exd5 {[%emt 0:00:10] Black must now prevent Bg5.} Nf6 {[%emt 0:07:16]} 15. Rae1 {[%emt 0:09:44]} h6 {[%emt 0:13:47]} 16. Nxd4 {[%emt 0:12:33]} (16. Qc1 $5 {[%cal Rd2h6]}) 16... Nxd5 {[%emt 0:03:03][%cal Od6h2] The position is equal.} 17. Nf5 {[%emt 0:22:34] [#]} Bb4 $146 {[%emt 0:11:21]} ({Predecessor:} 17... Bf4 18. Ne7+ Kh8 19. Nxd5 Bxd2 20. Qxd2 Qxd5 21. Qb4 Be6 22. Bc4 Qc6 23. Bxe6 fxe6 {½-½ (68) Mulyar,M (2385)-Venkat,A (1836) Middleton 2018}) 18. Qb2 {[%emt 0:08:19][%csl Gf5][%cal Rb2g7] [#]} Bxf5 {[%emt 0:01:01]} 19. Bxf5 {[%emt 0:00:01]} Bxd2 {[%emt 0:06:11]} 20. Qxd2 {[%emt 0:00:02]} Nf6 {[%emt 0:00:23]} 21. Qb4 {[%emt 0:05:37]} Qd5 {[%emt 0:01:30]} 22. Be4 {[%emt 0:01:17]} Nxe4 {[%emt 0:00:11] An interesting draw.  Weighted Error Value: White=0.04 (flawless) /Black=0.02 (flawless)} 1/2-1/2

[Event "Croatian 1A League 2022"]
[Site "Porec"]
[Date "2022.09.25"]
[Round "2.3"]
[White "Balogh, Csaba"]
[Black "Ivekovic, Bozidar"]
[Result "1/2-1/2"]
[ECO "B53"]
[WhiteElo "2583"]
[BlackElo "2407"]
[Annotator "TA"]
[PlyCount "46"]
[EventDate "2022.09.24"]
[EventType "team-tourn"]
[EventCountry "CRO"]
[SourceTitle "playchess.com"]
[Source "ChessBase"]
[SourceQuality "1"]
[TimeControl "40/5400+30:1800+30"]

{[%evp 9,46,14,9,19,12,24,27,23,21,24,22,27,25,0,0,-36,-20,-24,-12,-27,-37,0,20,26,46,-28,-41,-32,-39,-44,0,0,0,0,0,0,0,0,17]} 1. e4 {[%emt 0:00:08]} c5 {[%emt 0:00:05]} 2. Nf3 {[%emt 0:00:22]} d6 {[%emt 0:00:08]} 3. d4 {[%emt 0:01:21]} cxd4 {[%emt 0:00:06]} 4. Qxd4 {[%emt 0:00:09]} Nc6 {[%emt 0:00:05]} 5. Qe3 {[%emt 0:00:11]} Nf6 {[%emt 0:03:48]} 6. Be2 {[%emt 0:02:03] B53: Sicilian: 2...d6: Lines with Qxd4.} g6 {[%emt 0:02:30]} 7. O-O {[%emt 0:01:49]} Bg7 {[%emt 0:00:03]} 8. Rd1 {[%emt 0:02:24] White has an edge.} O-O {[%emt 0:07:08]} 9. Nc3 {[%emt 0:00:32]} Qc7 {[%emt 0:18:04]} 10. Qf4 {[%emt 0:05:24] [#]} Bg4 $146 {[%emt 0:09:23]} ({Predecessor:} 10... a6 11. Qh4 h5 12. Nd5 Nxd5 13. exd5 Ne5 14. Nxe5 dxe5 15. c4 b5 16. Bg5 f6 {1-0 (29) Anand,N (2366)-Low,Z (2443) Forni di Sopra 2019}) 11. h3 {[%emt 0:22:52]} (11. Nd5 $5 {[%cal Rd5c7]} Qc8 12. Nxf6+ Bxf6 13. c3 $11) 11... Bxf3 {[%emt 0:00:06]} 12. Bxf3 {[%emt 0:00:17] [#]} Nd4 $1 {[%emt 0:09:36]} 13. Rd2 {[%emt 0:21:15]} ({But not} 13. Rxd4 e5 14. Qe3 (14. Nb5 Qc5 $17) 14... exd4 15. Qxd4 Nd7 $17) 13... Qb6 {[%emt 0:13:20]} 14. Bd1 {[%emt 0:04:10]} Rfc8 {[%emt 0:01:57]} 15. Qe3 {[%emt 0:04:35]} Rxc3 {[%emt 0:05:59]} 16. bxc3 {[%emt 0:02:30]} Nb5 {[%emt 0:00:13] Hoping for ...Qxe3.} 17. Qxb6 {[%emt 0:08:25]} (17. Rd3 $14) 17... axb6 $11 {[%emt 0:00:04]} 18. f3 {[%emt 0:00:16]} Nxc3 {[%emt 0:02:15]} 19. Bb2 {[%emt 0:00:23]} Nd7 {[%emt 0:02:18] Pair of Knights!} 20. Rd3 {[%emt 0:00:34] The position is equal.} Ne2+ {[%emt 0:02:07][%mdl 64] [#] Discovered Attack} 21. Bxe2 {[%emt 0:00:07]} Bxb2 {[%emt 0:00:03]} 22. Rb1 {[%emt 0:02:23]} Rxa2 {[%emt 0:01:00]} 23. Kf1 {[%emt 0:00:37]} Nc5 {[%emt 0:00:47] Weighted Error Value: White=0.12 (very precise) /Black=0.07 (flawless)} 1/2-1/2

[Event "Croatian 1A League 2022"]
[Site "Porec"]
[Date "2022.09.25"]
[Round "2.4"]
[White "Ostovic, Matija"]
[Black "Kuljasevic, Davorin"]
[Result "1/2-1/2"]
[ECO "D36"]
[WhiteElo "2386"]
[BlackElo "2560"]
[Annotator "TA"]
[PlyCount "79"]
[EventDate "2022.09.24"]
[EventType "team-tourn"]
[EventCountry "CRO"]
[SourceTitle "playchess.com"]
[Source "ChessBase"]
[SourceQuality "1"]
[TimeControl "40/5400+30:1800+30"]

{[%evp 17,79,13,18,23,26,22,29,23,27,7,14,0,11,11,23,0,0,0,11,0,20,-11,3,-139,-142,-137,-140,-119,-6,-6,-6,-4,0,0,10,12,112,117,194,90,82,88,57,66,71,83,86,89,100,89,62,51,50,0,0,0,0,0,0,0,0,0,0,0]} 1. d4 {[%emt 0:02:42]} Nf6 {[%emt 0:00:14]} 2. c4 {[%emt 0:00:08]} e6 {[%emt 0:00:09]} 3. Nc3 {[%emt 0:00:06]} d5 {[%emt 0:00:18]} 4. Bg5 {[%emt 0:01:20]} Be7 {[%emt 0:09:08]} 5. cxd5 {[%emt 0:00:18]} exd5 {[%emt 0:00:11]} 6. e3 {[%emt 0:00:16]} O-O {[%emt 0:03:35]} 7. Bd3 {[%emt 0:00:08]} c6 {[%emt 0:04:27]} 8. Qc2 {[%emt 0:00:17]} h6 {[%emt 0:03:34]} 9. Bh4 {[%emt 0:01:09]} a5 {[%emt 0:00:38]} 10. Nge2 $1 {[%emt 0:00:41] 10.Nge2 scores better than 10.Nf3. D36: Queen's Gambit Declined: Exchange Variation: Main line (5 Bg5 c6 6 Qc2).} Na6 {[%emt 0:00:21]} 11. a3 {[%emt 0:00:30] Prevents Nb4.} Re8 {[%emt 0:03:04]} 12. O-O {[%emt 0:01:08] White has an edge.} Nc7 {[%emt 0:00:13]} 13. f3 {[%emt 0:00:39]} Ne6 {[%emt 0:02:29] [#]} 14. h3 $146 {[%emt 0:03:12]} ({Predecessor:} 14. a4 b6 15. Rad1 Bb7 16. Kh1 c5 17. Bb5 Rf8 18. dxc5 bxc5 19. Bc4 Nc7 20. Ba2 {1-0 (60) Carlsen,M (2864)-Anton Guijarro,D (2691) chess24.com INT 2022}) 14... b5 {[%emt 0:05:45][%cal Bb7b5,Bb5b4][%mdl 32]} 15. Bf2 {[%emt 0:03:21]} Bb7 {[%emt 0:06:03]} 16. e4 {[%emt 0:04:35]} b4 {[%emt 0:01:11]} 17. Na4 {[%emt 0:00:36]} dxe4 {[%emt 0:05:13]} 18. fxe4 {[%emt 0:00:12]} c5 {[%emt 0:00:09]} 19. d5 {[%emt 0:21:25]} Nxd5 {[%emt 0:12:45]} 20. Bb5 {[%emt 0:06:03]} (20. Rad1 $1 $11 {was the only way to keep the balance.} Ndf4 21. Nxf4 Nxf4 22. Bb5) 20... Nf6 $17 {[%emt 0:00:48]} 21. Bxe8 {[%emt 0:12:22]} Qxe8 {[%emt 0:00:09]} ({Much worse is} 21... Bxe4 $6 22. Bxf7+ $1 Kxf7 23. Qb3 $11) 22. Ng3 {[%emt 0:02:57]} Nd4 {[%emt 0:03:39]} ({Black should play} 22... Bd6 $17 {aiming for ...Bxg3.} 23. Nf5 Bf8) 23. Bxd4 $11 {[%emt 0:02:01]} cxd4 {[%emt 0:00:02]} 24. Qc7 $1 $36 {[%emt 0:07:02][%mdl 2048] White fights for an advantage.} Ba6 {[%emt 0:11:19] Hoping for ...Rc8. A strong pair of Bishops.} (24... Nxe4 $2 25. Nf5 Bf8 26. Qxb7 $18) 25. Nf5 {[%emt 0:03:28]} Bxf1 {[%emt 0:04:54]} 26. Nxe7+ {[%emt 0:02:42]} Kf8 {[%emt 0:00:14]} (26... Kh7 $1 $11 27. Nb6 Bxg2) 27. Nb6 $16 {[%emt 0:02:12] White is more active.} Bxg2 {[%emt 0:09:51]} (27... Qxe7 $16 28. Nxa8 Qxc7 29. Nxc7 Bc4) 28. Kxg2 {[%emt 0:04:39]} (28. e5 $1 $18 {[%cal Re5f6] is the precise move to win.} Qxe7 29. Qxe7+ Kxe7 30. exf6+ Kxf6 31. Nxa8 Bxa8 32. axb4) 28... Rd8 {[%emt 0:00:25] [#]} 29. e5 $1 {[%emt 0:06:13]} Qxe7 {[%emt 0:01:45]} 30. Qxe7+ {[%emt 0:00:06]} Kxe7 {[%emt 0:00:01]} 31. exf6+ {[%emt 0:00:12]} Kxf6 {[%emt 0:00:02][%mdl 4096] Endgame [#] KRN-KR} 32. a4 $1 {[%emt 0:06:05]} Kg5 {[%emt 0:04:56]} 33. Nc4 {[%emt 0:01:36]} Rd5 {[%emt 0:01:24]} 34. Kg3 {[%emt 0:01:22]} f5 {[%emt 0:02:06][%cal Bf7f5,Bf5f4][%mdl 32]} 35. Rd1 {[%emt 0:01:58]} ({Better is} 35. Rf1 $14) 35... f4+ $11 {[%emt 0:00:46] The position is equal.} 36. Kf3 {[%emt 0:00:23] And now Rg1+ would win.} Kf5 {[%emt 0:00:04]} 37. Nb6 {[%emt 0:01:07]} Rd6 {[%emt 0:02:24]} 38. Nc4 {[%emt 0:00:37]} Rd5 {[%emt 0:00:04]} 39. Nb6 {[%emt 0:03:05]} Rd6 {[%emt 0:00:08]} 40. Nc4 {[%emt 0:00:00][%csl LRa5,LRd6] Weighted Error Value: White=0.13 (very precise) /Black=0.18 (very precise)} 1/2-1/2